fUST/lending_fUST_20250926
["ID","MTS","AMOUNT","RATE_DAILY","PERIOD"]
[387799242,1758881446821,-210.43548773,0.00038904,30]
[387799243,1758881446830,-480.0,0.00038904,30]
[387799244,1758881446841,-480.0,0.00038904,30]
[387799245,1758881446858,-480.0,0.00038904,30]
[387799246,1758881446872,-480.0,0.00038904,30]
[387799247,1758881446883,-480.0,0.00038904,30]
[387799248,1758881446893,-500.0,0.00038904,30]
[387799249,1758881446903,-483.49525876,0.00038904,30]
[387799250,1758881446913,-480.0,0.00038904,30]
[387799251,1758881446923,-647.07,0.00038904,30]
[387799252,1758881446933,-484.99417005,0.00038904,30]
[387799253,1758881446942,-480.0,0.00038904,30]
[387799254,1758881446952,-480.0,0.00038904,30]
[387799255,1758881446961,-701.94,0.00038904,30]
[387799256,1758881446972,-480.0,0.00038904,30]
[387799257,1758881446982,-308.37006625,0.00038904,30]
[387799258,1758881446992,-480.0,0.00038904,30]
[387799259,1758881447002,-480.0,0.00038904,30]
[387799260,1758881447013,-480.0,0.00038904,30]
[387799261,1758881447022,-832.52,0.00038904,30]
[387799262,1758881447032,-480.0,0.00038904,30]
[387799263,1758881447041,-480.0,0.00038904,30]
[387799264,1758881447052,-480.0,0.00038904,30]
[387799265,1758881447063,-294.57052935,0.00038904,30]
[387799266,1758881447073,-485.3763402,0.00038904,30]
[387799267,1758881447083,-485.11470888,0.00038904,30]
[387799268,1758881447092,-480.0,0.00038904,30]
[387799269,1758881447102,-486.34943587,0.00038904,30]
[387799270,1758881447112,-417.42659025,0.00038904,30]
[387799271,1758881447121,-499.26,0.00038904,30]
[387799272,1758881447134,-480.0,0.00038904,30]
[387799273,1758881447143,-480.0,0.00038904,30]
[387799274,1758881447153,-480.0,0.00038904,30]
[387799275,1758881447164,-947.96,0.00038904,30]
[387799276,1758881447173,-480.0,0.00038904,30]
[387799277,1758881447183,-480.0,0.00038904,30]
[387799278,1758881447193,-480.0,0.00038904,30]
[387799279,1758881447203,-480.0,0.00038904,30]
[387799280,1758881447212,-480.0,0.00038904,30]
[387799281,1758881447221,-480.0,0.00038904,30]
[387799282,1758881447232,-480.0,0.00038904,30]
[387799283,1758881447242,-480.0,0.00038904,30]
[387799284,1758881447251,-271.3771031,0.00038904,30]
[387799285,1758881447260,-480.0,0.00038904,30]
[387799286,1758881447269,-480.0,0.00038904,30]
[387799287,1758881447279,-445.03555212,0.00038904,30]
[387799288,1758881447288,-701.28,0.00038904,30]
[387799289,1758881447302,-480.0,0.00038904,30]
[387799290,1758881447311,-480.0,0.00038904,30]
[387799291,1758881447321,-480.0,0.00038904,30]
[387799292,1758881447330,-480.0,0.00038904,30]
[387799293,1758881447339,-480.0,0.00038904,30]
[387799294,1758881447349,-480.0,0.00038904,30]
[387799295,1758881447358,-480.0,0.00038904,30]
[387799296,1758881447367,-695.06,0.00038904,30]
[387799297,1758881447377,-2156.02,0.00038904,30]
[387799298,1758881447386,-480.0,0.00038904,30]
[387799299,1758881447396,-480.0,0.00038904,30]
[387799300,1758881447406,-480.0,0.00038904,30]
[387799301,1758881447416,-510.39,0.00038904,30]
[387799302,1758881447425,-480.0,0.00038904,30]
[387799303,1758881447435,-480.0,0.00038904,30]
[387799304,1758881447444,-480.0,0.00038904,30]
[387799305,1758881447454,-480.0,0.00038904,30]
[387799306,1758881447463,-1173.95,0.00038904,30]
[387799307,1758881447474,-480.0,0.00038904,30]
[387799308,1758881447484,-442.37799005,0.00038904,30]
[387799309,1758881447494,-480.0,0.00038904,30]
[387799310,1758881447503,-480.0,0.00038904,30]
[387799312,1758881447515,-3727.55,0.00038904,30]
[387799314,1758881447524,-480.0,0.00038904,30]
[387799315,1758881447533,-480.0,0.00038904,30]
[387799317,1758881447543,-804.45,0.00038904,30]
[387799319,1758881447553,-3210.33,0.00038904,30]
[387799321,1758881447563,-480.0,0.00038904,30]
[387799330,1758881447573,-480.0,0.00038904,30]
[387799331,1758881447659,-495.08531231,0.00038904,30]
[387799332,1758881447669,-5582.33,0.00038904,30]
[387799335,1758881447679,-480.0,0.00038904,30]
[387799336,1758881447688,-678.62,0.00038904,30]
[387799338,1758881447697,-480.0,0.00038904,30]
[387799340,1758881447708,-3073.8,0.00038904,30]
[387799342,1758881447717,-480.0,0.00038904,30]
[387799344,1758881447726,-925.22,0.00038904,30]
[387799345,1758881447735,-150.39976775,0.00038904,30]
[387799346,1758881447744,-480.0,0.00038904,30]
[387799347,1758881447753,-480.0,0.00038904,30]
[387799348,1758881447763,-1494.72,0.00038904,30]
[387799349,1758881447773,-480.0,0.00038904,30]
[387799350,1758881447782,-480.0,0.00038904,30]
[387799351,1758881447792,-480.0,0.00038904,30]
[387799352,1758881447800,-480.0,0.00038904,30]
[387799353,1758881447810,-769.7,0.00038904,30]
[387799354,1758881447819,-480.0,0.00038904,30]
[387799355,1758881447829,-480.0,0.00038904,30]
[387799356,1758881447839,-1113.02,0.00038904,30]
[387799357,1758881447848,-480.0,0.00038904,30]
[387799359,1758881447858,-480.0,0.00038904,30]
[387799360,1758881447867,-480.0,0.00038904,30]
[387799361,1758881447876,-894.64,0.00038904,30]
[387799362,1758881447885,-576.36,0.00038904,30]
[387799363,1758881447894,-480.0,0.00038904,30]
[387799364,1758881447903,-480.0,0.00038904,30]
[387799365,1758881447912,-480.0,0.00038904,30]
[387799366,1758881447922,-1846.79,0.00038904,30]
[387799367,1758881447931,-980.47,0.00038904,30]
[387799368,1758881447940,-480.0,0.00038904,30]
[387799369,1758881447949,-164.82931972,0.00038904,30]
[387799370,1758881447958,-509.86,0.00038904,30]
[387799371,1758881447968,-480.0,0.00038904,30]
[387799372,1758881447978,-480.0,0.00038904,30]
[387799373,1758881447988,-480.0,0.00038904,30]
[387799374,1758881447998,-480.0,0.00038904,30]
[387799375,1758881448007,-480.0,0.00038904,30]
[387799376,1758881448017,-480.0,0.00038904,30]
[387799377,1758881448027,-540.0,0.00038904,30]
[387799378,1758881448037,-2079.49673592,0.00038904,30]
[387799379,1758881448057,-1860.86326408,0.00038904,30]
[387799380,1758881448067,-480.0,0.00038904,30]
[387799381,1758881448077,-480.0,0.00038904,30]
[387799382,1758881448087,-480.0,0.00038904,30]
[387799383,1758881448097,-501.24,0.00038904,30]
[387799384,1758881448109,-480.0,0.00038904,30]
[387799385,1758881448131,-480.0,0.00038904,30]
[387799386,1758881448149,-480.0,0.00038904,30]
[387799387,1758881448169,-480.0,0.00038904,30]
[387799388,1758881448189,-480.0,0.00038904,30]
[387799389,1758881448209,-480.0,0.00038904,30]
[387799390,1758881448226,-480.0,0.00038904,30]
[387799391,1758881448244,-480.0,0.00038904,30]
[387799392,1758881448261,-480.0,0.00038904,30]
[387799393,1758881448280,-480.0,0.00038904,30]
[387799394,1758881448298,-737.32,0.00038904,30]
[387799395,1758881448319,-480.0,0.00038904,30]
[387799396,1758881448332,-480.0,0.00038904,30]
[387799397,1758881448351,-480.0,0.00038904,30]
[387799398,1758881448367,-738.47,0.00038904,21]
[387799399,1758881448383,-480.0,0.00038904,30]
[387799400,1758881448396,-1437.44,0.00038904,30]
[387799401,1758881448411,-901.43,0.00038904,30]
[387799402,1758881448427,-480.0,0.00038904,7]
[387799403,1758881448442,-629.26,0.00038904,30]
[387799404,1758881448460,-1829.68,0.00038904,3]
[387799405,1758881448478,-480.0,0.00038904,30]
[387799406,1758881448493,-1293.99,0.00038904,30]
[387799407,1758881448508,-480.0,0.00038904,30]
[387799408,1758881448523,-480.0,0.00038904,30]
[387799409,1758881448538,-1545.06,0.00038904,30]
[387799410,1758881448552,-480.0,0.00038904,30]
[387799411,1758881448562,-571.66,0.00038904,30]
[387799412,1758881448571,-759.11,0.00038904,30]
[387799413,1758881448580,-1618.94,0.00038904,30]
[387799414,1758881448591,-480.0,0.00038904,30]
[387799415,1758881448601,-480.0,0.00038904,30]
[387799416,1758881448611,-480.0,0.00038904,30]
[387799417,1758881448620,-1400.63,0.00038904,30]
[387799418,1758881448633,-480.0,0.00038904,30]
[387799419,1758881448643,-6529.19,0.00038904,30]
[387799420,1758881448653,-1015.05,0.00038904,30]
[387799421,1758881448663,-480.0,0.00038904,30]
[387799422,1758881448674,-480.0,0.00038904,30]
[387799423,1758881448686,-480.0,0.00038904,30]
[387799424,1758881448695,-480.0,0.00038904,30]
[387799425,1758881448705,-670.08,0.00038904,30]
[387799426,1758881448715,-480.0,0.00038904,30]
[387799427,1758881448727,-480.0,0.00038904,30]
[387799428,1758881448742,-480.0,0.00038904,30]
[387799429,1758881448752,-1232.57,0.00038904,30]
[387799430,1758881448949,-4000.0,0.00038908,5]
[387799431,1758881448968,-300.0,0.00038921,5]
[387799432,1758881448979,-502.51296016,0.00038973,5]
[387799433,1758881448988,-605.31,0.00039081,120]
[387799434,1758881448997,-2000.0,0.00039116,5]
[387799435,1758881449007,-450.0,0.00039116,5]
[387799436,1758881449018,-2007.59079256,0.00039116,5]
[387799437,1758881449028,-578.82701108,0.00039178,30]
[387799438,1758881449037,-480.0,0.00039178,30]
[387799439,1758881449046,-480.0,0.00039178,30]
[387799440,1758881449055,-480.0,0.00039178,30]
[387799441,1758881449064,-480.0,0.00039178,30]
[387799442,1758881449073,-283.26471898,0.00039178,30]
[387799443,1758881449083,-480.0,0.00039178,30]
[387799444,1758881449093,-480.0,0.00039178,30]
[387799445,1758881449104,-480.0,0.00039178,30]
[387799446,1758881449113,-480.0,0.00039178,30]
[387799447,1758881449123,-480.0,0.00039178,30]
[387799448,1758881449133,-170.52608154,0.00039178,30]
[387799449,1758881449143,-480.0,0.00039178,30]
[387799450,1758881449154,-480.0,0.00039178,30]
[387799451,1758881449164,-452.6464874,0.00039178,30]
[387799452,1758881449174,-480.0,0.00039178,30]
[387799453,1758881449183,-578.15181387,0.00039178,30]
[387799454,1758881449193,-480.0,0.00039178,30]
[387799455,1758881449202,-173.0796515,0.00039178,30]
[387799456,1758881449212,-480.0,0.00039178,30]
[387799457,1758881449223,-480.0,0.00039178,30]
[387799458,1758881449233,-480.0,0.00039178,30]
[387799459,1758881449243,-402.21779819,0.00039178,30]
[387799460,1758881449253,-500.0,0.00039178,30]
[387799461,1758881449263,-488.54258119,0.00039178,30]
[387799462,1758881449273,-647.07,0.00039178,30]
[387799463,1758881449282,-298.21905919,0.00039178,30]
[387799464,1758881449293,-480.0,0.00039178,30]
[387799465,1758881449303,-701.94,0.00039178,30]
[387799466,1758881449313,-480.0,0.00039178,30]
[387799467,1758881449323,-480.0,0.00039178,30]
[387799468,1758881449334,-214.86719304,0.00039178,30]
[387799469,1758881449344,-832.52,0.00039178,30]
[387799470,1758881449354,-480.0,0.00039178,30]
[387799471,1758881449364,-480.0,0.00039178,30]
[387799472,1758881449374,-480.0,0.00039178,30]
[387799473,1758881449384,-480.0,0.00039178,30]
[387799474,1758881449394,-499.26,0.00039178,30]
[387799475,1758881449404,-480.0,0.00039178,30]
[387799476,1758881449413,-480.0,0.00039178,30]
[387799477,1758881449423,-947.96,0.00039178,30]
[387799478,1758881449433,-480.0,0.00039178,30]
[387799479,1758881449442,-480.0,0.00039178,30]
[387799480,1758881449452,-480.0,0.00039178,30]
[387799481,1758881449461,-480.0,0.00039178,30]
[387799482,1758881449475,-480.0,0.00039178,30]
[387799483,1758881449485,-480.0,0.00039178,30]
[387799484,1758881449494,-480.0,0.00039178,30]
[387799485,1758881449504,-480.0,0.00039178,30]
[387799486,1758881449514,-480.0,0.00039178,30]
[387799487,1758881449524,-480.0,0.00039178,30]
[387799488,1758881449533,-701.28,0.00039178,30]
[387799489,1758881449542,-480.0,0.00039178,30]
[387799490,1758881449552,-190.69273148,0.00039178,30]
[387799491,1758881449561,-494.08952021,0.00039178,30]
[387799492,1758881449570,-480.0,0.00039178,30]
[387799493,1758881449580,-480.0,0.00039178,30]
[387799494,1758881449590,-218.37503215,0.00039178,30]
[387799495,1758881449600,-695.06,0.00039178,30]
[387799496,1758881449610,-2156.02,0.00039178,30]
[387799497,1758881449619,-480.0,0.00039178,30]
[387799498,1758881449630,-480.0,0.00039178,30]
[387799499,1758881449639,-480.0,0.00039178,30]
[387799500,1758881449648,-510.39,0.00039178,30]
[387799501,1758881449657,-480.0,0.00039178,30]
[387799502,1758881449667,-480.0,0.00039178,30]
[387799503,1758881449676,-480.0,0.00039178,30]
[387799504,1758881449686,-480.0,0.00039178,30]
[387799505,1758881449697,-1173.95,0.00039178,30]
[387799506,1758881449706,-480.0,0.00039178,30]
[387799507,1758881449722,-480.0,0.00039178,30]
[387799508,1758881449732,-480.0,0.00039178,30]
[387799509,1758881449742,-3727.55,0.00039178,30]
[387799510,1758881449751,-480.0,0.00039178,30]
[387799511,1758881449761,-480.0,0.00039178,30]
[387799512,1758881449771,-804.45,0.00039178,30]
[387799513,1758881449780,-3210.33,0.00039178,30]
[387799514,1758881449790,-480.0,0.00039178,30]
[387799515,1758881449800,-480.0,0.00039178,30]
[387799516,1758881449809,-5582.33,0.00039178,30]
[387799517,1758881449818,-480.0,0.00039178,30]
[387799518,1758881449827,-678.62,0.00039178,30]
[387799519,1758881449836,-480.0,0.00039178,30]
[387799520,1758881449846,-3073.8,0.00039178,30]
[387799521,1758881449856,-480.0,0.00039178,30]
[387799522,1758881449866,-925.22,0.00039178,30]
[387799523,1758881449875,-480.0,0.00039178,30]
[387799524,1758881449884,-1494.72,0.00039178,30]
[387799525,1758881449894,-480.0,0.00039178,30]
[387799526,1758881449903,-480.0,0.00039178,30]
[387799527,1758881449911,-480.0,0.00039178,30]
[387799528,1758881449920,-480.0,0.00039178,30]
[387799529,1758881449929,-769.7,0.00039178,30]
[387799530,1758881449938,-480.0,0.00039178,30]
[387799531,1758881449947,-480.0,0.00039178,30]
[387799532,1758881449956,-1113.02,0.00039178,30]
[387799533,1758881449965,-480.0,0.00039178,30]
[387799534,1758881449974,-480.0,0.00039178,30]
[387799535,1758881449983,-480.0,0.00039178,30]
[387799536,1758881449992,-894.64,0.00039178,30]
[387799537,1758881450002,-576.36,0.00039178,30]
[387799538,1758881450011,-480.0,0.00039178,30]
[387799539,1758881450021,-480.0,0.00039178,30]
[387799540,1758881450030,-480.0,0.00039178,30]
[387799541,1758881450039,-1846.79,0.00039178,30]
[387799542,1758881450048,-980.47,0.00039178,30]
[387799543,1758881450057,-480.0,0.00039178,30]
[387799544,1758881450067,-509.86,0.00039178,30]
[387799545,1758881450076,-480.0,0.00039178,30]
[387799546,1758881450086,-480.0,0.00039178,30]
[387799547,1758881450095,-480.0,0.00039178,30]
[387799548,1758881450105,-480.0,0.00039178,30]
[387799549,1758881450114,-500.54643758,0.00039178,30]
[387799550,1758881450123,-480.0,0.00039178,30]
[387799551,1758881450133,-540.0,0.00039178,30]
[387799552,1758881450143,-3940.36,0.00039178,30]
[387799553,1758881450153,-480.0,0.00039178,30]
[387799554,1758881450163,-480.0,0.00039178,30]
[387799555,1758881450172,-480.0,0.00039178,30]
[387799556,1758881450182,-501.24,0.00039178,30]
[387799557,1758881450191,-480.0,0.00039178,30]
[387799558,1758881450200,-486.86562984,0.00039178,30]
[387799559,1758881450209,-480.0,0.00039178,30]
[387799560,1758881450219,-480.0,0.00039178,30]
[387799561,1758881450227,-480.0,0.00039178,30]
[387799562,1758881450236,-480.0,0.00039178,30]
[387799563,1758881450245,-480.0,0.00039178,30]
[387799564,1758881450255,-480.0,0.00039178,30]
[387799565,1758881450264,-480.0,0.00039178,30]
[387799566,1758881450273,-737.32,0.00039178,30]
[387799567,1758881450282,-480.0,0.00039178,30]
[387799568,1758881450291,-480.0,0.00039178,30]
[387799569,1758881450300,-738.47,0.00039178,21]
[387799570,1758881450310,-480.0,0.00039178,30]
[387799571,1758881450319,-1437.44,0.00039178,30]
[387799572,1758881450329,-901.43,0.00039178,30]
[387799573,1758881450338,-501.49646716,0.00039178,7]
[387799574,1758881450347,-629.26,0.00039178,30]
[387799575,1758881450356,-1829.68,0.00039178,3]
[387799576,1758881450366,-480.0,0.00039178,30]
[387799577,1758881450378,-1293.99,0.00039178,30]
[387799578,1758881450387,-480.0,0.00039178,30]
[387799579,1758881450396,-480.0,0.00039178,30]
[387799580,1758881450405,-1545.06,0.00039178,30]
[387799581,1758881450414,-480.0,0.00039178,30]
[387799582,1758881450423,-571.66,0.00039178,30]
[387799583,1758881450432,-759.11,0.00039178,30]
[387799584,1758881450442,-1618.94,0.00039178,30]
[387799585,1758881450452,-480.0,0.00039178,30]
[387799586,1758881450462,-480.0,0.00039178,30]
[387799587,1758881450472,-480.0,0.00039178,30]
[387799588,1758881450483,-1400.63,0.00039178,30]
[387799589,1758881450492,-480.0,0.00039178,30]
[387799590,1758881450501,-6529.19,0.00039178,30]
[387799591,1758881450510,-1015.05,0.00039178,30]
[387799592,1758881450521,-483.84681797,0.00039178,30]
[387799593,1758881450530,-480.0,0.00039178,30]
[387799594,1758881450539,-480.0,0.00039178,30]
[387799595,1758881450552,-670.08,0.00039178,30]
[387799596,1758881450562,-480.0,0.00039178,30]
[387799597,1758881450571,-480.0,0.00039178,30]
[387799598,1758881450580,-480.0,0.00039178,30]
[387799599,1758881450587,-1232.57,0.00039178,30]
[387799600,1758881450596,-40000.0,0.000392,14]
[387799601,1758881450605,-492.26220822,0.00039242,2]
[387799602,1758881450615,-3910.26219003,0.00039297,72]
[387799603,1758881450633,-5585.22252072,0.00039297,72]
[387799604,1758881450642,-5000.0,0.00039297,66]
[387799605,1758881450651,-5000.0,0.00039297,71]
[387799606,1758881450660,-151.0,0.00039352,30]
[387799607,1758881450670,-31872.45707153,0.0003944,7]
[387799608,1758881450683,-8337.91378668,0.0003944,7]
[387799609,1758881450693,-82816.2277141,0.0003944,7]
[387799610,1758881450820,-480.0,0.0003863,30]
[387799611,1758881450830,-480.0,0.00038904,30]
[387799612,1758881450839,-480.0,0.00039178,30]
[387799613,1758881450848,-47.80583894,0.0003944,7]
[387799614,1758881450859,-1114.0,0.0003944,7]
[387799615,1758881450893,-837.34241829,0.0003944,7]
[387799616,1758881450905,-8173.62668011,0.0003944,7]
[387799617,1758881450917,-507.33138492,0.0003944,7]
[387799618,1758881451009,-510.33522986,0.0003944,7]
[387799619,1758881451020,-5312.89199758,0.0003944,7]
[387799620,1758881451800,-384.65747748,0.00024953,8]
[387799621,1758881451810,-887156.78512818,0.0003487,7]
[387799622,1758881451819,-480.0,0.00038356,30]
[387799623,1758881451829,-480.0,0.00038356,30]
[387799624,1758881451838,-480.0,0.0003863,30]
[387799625,1758881451847,-480.0,0.0003863,30]
[387799626,1758881451856,-480.0,0.00038904,30]
[387799627,1758881451865,-487.68362795,0.00038904,30]
[387799628,1758881451876,-480.0,0.00039178,30]
[387799629,1758881451884,-788379.7923293,0.0003944,7]
[387799630,1758881451894,-480.0,0.00039452,30]
[387799631,1758881451903,-480.0,0.00039452,30]
[387799632,1758881451911,-480.0,0.00039452,30]
[387799633,1758881451920,-536.84146012,0.00039452,30]
[387799634,1758881451929,-480.0,0.00039452,30]
[387799635,1758881451938,-489.67573655,0.00039452,30]
[387799636,1758881451947,-480.0,0.00039452,30]
[387799637,1758881451956,-488.42310806,0.00039452,30]
[387799638,1758881451965,-480.0,0.00039452,30]
[387799639,1758881451975,-480.0,0.00039452,30]
[387799640,1758881451983,-480.0,0.00039452,30]
[387799641,1758881451991,-480.0,0.00039452,30]
[387799642,1758881452000,-480.0,0.00039452,30]
[387799643,1758881452009,-480.0,0.00039452,30]
[387799644,1758881452018,-622.52240459,0.00039452,30]
[387799645,1758881452027,-647.07,0.00039452,30]
[387799646,1758881452036,-480.0,0.00039452,30]
[387799647,1758881452045,-701.94,0.00039452,30]
[387799648,1758881452054,-832.52,0.00039452,30]
[387799649,1758881452063,-480.0,0.00039452,30]
[387799650,1758881452072,-559.43825369,0.00039452,30]
[387799651,1758881452081,-499.26,0.00039452,30]
[387799652,1758881452090,-480.0,0.00039452,30]
[387799653,1758881452099,-480.0,0.00039452,30]
[387799654,1758881452107,-947.96,0.00039452,30]
[387799655,1758881452116,-480.0,0.00039452,30]
[387799656,1758881452126,-480.0,0.00039452,30]
[387799657,1758881452136,-480.0,0.00039452,30]
[387799658,1758881452146,-480.0,0.00039452,30]
[387799659,1758881452156,-480.0,0.00039452,30]
[387799660,1758881452165,-480.0,0.00039452,30]
[387799661,1758881452175,-480.0,0.00039452,30]
[387799662,1758881452184,-480.0,0.00039452,30]
[387799663,1758881452194,-361.52161224,0.00039452,30]
[387799664,1758881452203,-695.06,0.00039452,30]
[387799665,1758881452214,-2156.02,0.00039452,30]
[387799666,1758881452224,-480.0,0.00039452,30]
[387799667,1758881452234,-480.0,0.00039452,30]
[387799668,1758881452243,-510.39,0.00039452,30]
[387799669,1758881452253,-480.0,0.00039452,30]
[387799670,1758881452262,-480.0,0.00039452,30]
[387799671,1758881452271,-480.0,0.00039452,30]
[387799672,1758881452281,-1173.95,0.00039452,30]
[387799673,1758881452290,-480.0,0.00039452,30]
[387799674,1758881452299,-480.0,0.00039452,30]
[387799675,1758881452307,-3727.55,0.00039452,30]
[387799676,1758881452315,-480.0,0.00039452,30]
[387799677,1758881452325,-804.45,0.00039452,30]
[387799678,1758881452335,-480.0,0.00039452,30]
[387799679,1758881452345,-480.0,0.00039452,30]
[387799680,1758881452354,-5582.33,0.00039452,30]
[387799681,1758881452363,-480.0,0.00039452,30]
[387799682,1758881452373,-678.62,0.00039452,30]
[387799683,1758881452384,-480.0,0.00039452,30]
[387799684,1758881452394,-3073.8,0.00039452,30]
[387799685,1758881452404,-480.0,0.00039452,30]
[387799686,1758881452414,-925.22,0.00039452,30]
[387799687,1758881452424,-480.0,0.00039452,30]
[387799688,1758881452433,-1494.72,0.00039452,30]
[387799689,1758881452442,-480.0,0.00039452,30]
[387799690,1758881452452,-480.0,0.00039452,30]
[387799691,1758881452461,-480.0,0.00039452,30]
[387799692,1758881452476,-489.54718786,0.00039452,30]
[387799693,1758881452486,-769.7,0.00039452,30]
[387799694,1758881452495,-480.0,0.00039452,30]
[387799695,1758881452505,-480.0,0.00039452,30]
[387799696,1758881452514,-1113.02,0.00039452,30]
[387799697,1758881452524,-480.0,0.00039452,30]
[387799698,1758881452534,-480.0,0.00039452,30]
[387799699,1758881452548,-894.64,0.00039452,30]
[387799700,1758881452557,-576.36,0.00039452,30]
[387799701,1758881452567,-480.0,0.00039452,30]
[387799702,1758881452577,-480.0,0.00039452,30]
[387799703,1758881452587,-480.0,0.00039452,30]
[387799704,1758881452596,-1846.79,0.00039452,30]
[387799705,1758881452605,-980.47,0.00039452,30]
[387799706,1758881452615,-480.0,0.00039452,30]
[387799707,1758881452626,-509.86,0.00039452,30]
[387799708,1758881452636,-480.0,0.00039452,30]
[387799709,1758881452647,-480.0,0.00039452,30]
[387799710,1758881452656,-554.95738584,0.00039452,30]
[387799711,1758881452665,-480.0,0.00039452,30]
[387799712,1758881452674,-480.0,0.00039452,30]
[387799713,1758881452684,-540.0,0.00039452,30]
[387799714,1758881452694,-3940.36,0.00039452,30]
[387799715,1758881452703,-480.0,0.00039452,30]
[387799716,1758881452711,-480.0,0.00039452,30]
[387799717,1758881452721,-480.0,0.00039452,30]
[387799718,1758881452730,-501.24,0.00039452,30]
[387799719,1758881452739,-480.0,0.00039452,30]
[387799720,1758881452749,-480.0,0.00039452,30]
[387799721,1758881452759,-480.0,0.00039452,30]
[387799722,1758881452769,-480.0,0.00039452,30]
[387799723,1758881452779,-480.0,0.00039452,30]
[387799724,1758881452789,-480.0,0.00039452,30]
[387799725,1758881452798,-480.0,0.00039452,30]
[387799726,1758881452808,-480.0,0.00039452,30]
[387799727,1758881452817,-737.32,0.00039452,30]
[387799728,1758881452827,-480.0,0.00039452,30]
[387799729,1758881452836,-480.0,0.00039452,30]
[387799730,1758881452845,-738.47,0.00039452,21]
[387799731,1758881452856,-480.0,0.00039452,30]
[387799732,1758881452866,-1437.44,0.00039452,30]
[387799733,1758881452876,-901.43,0.00039452,30]
[387799734,1758881452886,-629.26,0.00039452,30]
[387799735,1758881452895,-1829.68,0.00039452,3]
[387799736,1758881452905,-480.0,0.00039452,30]
[387799737,1758881452915,-1293.99,0.00039452,30]
[387799738,1758881452925,-480.0,0.00039452,30]
[387799739,1758881452934,-480.0,0.00039452,30]
[387799740,1758881452943,-1545.06,0.00039452,30]
[387799741,1758881452952,-480.0,0.00039452,30]
[387799742,1758881452961,-571.66,0.00039452,30]
[387799743,1758881452971,-759.11,0.00039452,30]
[387799744,1758881452980,-1618.94,0.00039452,30]
[387799745,1758881452989,-480.0,0.00039452,30]
[387799746,1758881452998,-480.0,0.00039452,30]
[387799747,1758881453007,-480.0,0.00039452,30]
[387799748,1758881453017,-1400.63,0.00039452,30]
[387799749,1758881453026,-199.12815661,0.00039452,30]
[387799750,1758881453035,-6529.19,0.00039452,30]
[387799751,1758881453044,-1015.05,0.00039452,30]
[387799752,1758881453053,-480.0,0.00039452,30]
[387799753,1758881453063,-480.0,0.00039452,30]
[387799754,1758881453073,-670.08,0.00039452,30]
[387799755,1758881453082,-480.0,0.00039452,30]
[387799756,1758881453092,-480.0,0.00039452,30]
[387799757,1758881453101,-480.0,0.00039452,30]
[387799758,1758881453110,-1232.57,0.00039452,30]
[387799759,1758881453119,-600.82083276,0.00039452,30]
[387799760,1758881453130,-480.0,0.00039452,30]
[387799761,1758881453139,-1518.19300891,0.00039456,5]